bitfinex/quotes_SOLUSD_20250617
["timestamp","ask_amount","ask_price","bid_price","bid_amount"]
[1750157632259,30.93150728,151.13,151.1,6.22]
[1750157632407,4.93264064,151.12,151.1,6.22]
[1750157632718,5.41581485,151.12,151.1,6.22]
[1750157633089,5.41581485,151.13,151.1,6.22]
[1750157633290,4.93250656,151.12,151.1,6.22]
[1750157633607,5.41581485,151.13,151.1,6.22]
[1750157633914,4.93249714,151.12,151.1,6.22]
[1750157634214,38.03274183,151.13,151.1,6.22]
[1750157634413,4.93251875,151.12,151.1,6.22]
[1750157634593,26.0,151.13,151.1,11.63581485]
[1750157635018,26.0,151.13,151.1,6.22]
[1750157635019,4.93253059,151.12,151.1,6.22]
[1750157635619,38.03265782,151.13,151.1,6.22]
[1750157635798,4.93491845,151.12,151.1,6.22]
[1750157636119,38.03265782,151.13,151.1,6.22]
[1750157636418,4.93499172,151.12,151.1,6.22]
[1750157636616,5.41581485,151.12,151.1,6.22]
[1750157637923,16.96858028,151.11,151.1,6.22]
[1750157638712,19.43616845,151.11,151.1,6.22]
[1750157638922,16.96858028,151.11,151.07,6.22]
[1750157639118,10.35088457,151.1,151.07,6.22]
[1750157639422,10.35088457,151.09,151.07,6.22]
[1750157639620,4.94247667,151.08,151.07,6.22]
[1750157640694,10.35829152,151.08,151.07,6.22]
[1750157641911,4.94247667,151.08,151.07,6.22]
[1750157642291,4.94247835,151.08,151.07,6.22]
[1750157642824,11.56148814,151.08,151.07,6.22]
[1750157643200,16.50809846,151.08,151.07,6.22]
[1750157643508,18.98350406,151.08,151.07,6.22]
[1750157643711,12.36449427,151.08,151.07,6.22]
[1750157644744,12.37356929,151.08,151.07,6.22]
[1750157647694,9.89816369,151.08,151.07,6.22]
[1750157648108,4.94661032,151.08,151.07,6.22]
[1750157648318,9.89834865,151.08,151.07,6.22]
[1750157648619,9.89841322,151.08,151.07,6.22]
[1750157653929,9.89662938,151.08,151.07,6.22]
[1750157654120,9.89692152,151.08,151.07,6.22]
[1750157656546,12.37172535,151.08,151.07,6.22]
[1750157656721,9.89692152,151.08,151.07,6.22]
[1750157656928,12.37213939,151.08,151.07,6.22]
[1750157657122,12.3720263,151.08,151.07,6.22]
[1750157657745,12.37198183,151.08,151.07,6.22]
[1750157658126,16.51586778,151.08,151.07,6.22]
[1750157658433,12.37134351,151.08,151.07,6.22]
[1750157658640,9.89685799,151.08,151.07,6.22]
[1750157658951,12.37134699,151.08,151.07,6.22]
[1750157659152,9.89685799,151.08,151.07,6.22]
[1750157659529,12.37166595,151.08,151.07,6.22]
[1750157660056,9.89685799,151.08,151.07,6.22]
[1750157660926,12.37102562,151.08,151.07,6.22]
[1750157661349,9.89622052,151.08,151.07,6.22]
[1750157662623,12.37145706,151.08,151.07,6.22]
[1750157662823,7.42184686,151.08,151.07,6.22]
[1750157663155,12.3726869,151.08,151.07,6.22]
[1750157665833,12.3723454,151.08,151.07,6.22]
[1750157666143,18.99135519,151.08,151.07,6.22]
[1750157666340,12.3723454,151.08,151.07,6.22]
[1750157667353,9.89710949,151.08,151.07,6.22]
[1750157667532,12.37253015,151.08,151.07,6.22]
[1750157668133,9.89710949,151.08,151.07,6.22]
[1750157668354,12.37331946,151.08,151.07,6.22]
[1750157668759,9.89710949,151.08,151.07,6.22]
[1750157668944,12.37348389,151.08,151.07,6.22]
[1750157671437,9.89710949,151.08,151.07,6.22]
[1750157671638,12.37367497,151.08,151.07,6.22]
[1750157672250,12.37658045,151.08,151.07,6.22]
[1750157672739,22.45129709,151.08,151.02,6.62121938]
[1750157672936,12.37658045,151.07,151.03,9.55570685]
[1750157673128,9.90001497,151.06,151.04,3.45570685]
[1750157673334,4.95340465,151.05,151.04,3.45570685]
[1750157673632,22.71006305,151.1,151.04,3.45570685]
[1750157673633,4.95446322,151.07,151.04,3.45570685]
[1750157673829,4.95295147,151.06,151.05,3.45570685]
[1750157674034,2.4764468,151.08,151.05,3.45570685]
[1750157674255,6.61874586,151.09,151.05,3.45570685]
[1750157674256,9.90797007,151.07,151.05,3.45570685]
[1750157674457,2.47653791,151.08,151.06,3.45570685]
[1750157674661,6.61874586,151.09,151.06,3.45570685]
[1750157674662,9.90741627,151.07,151.06,3.45570685]
[1750157676446,9.90741627,151.07,151.06,9.53570685]
[1750157677759,9.90741627,151.07,151.06,6.08]
[1750157679063,4.95284293,151.07,151.06,6.08]
[1750157679959,9.90856187,151.07,151.06,6.08]
[1750157680639,12.38976723,151.07,151.06,6.08]
[1750157683363,9.90856187,151.07,151.06,6.08]
[1750157683563,12.38929751,151.07,151.06,6.08]
[1750157684263,12.38929751,151.07,151.06,16.15559298]
[1750157684462,4.95284293,151.07,151.06,16.15559298]
[1750157685356,6.61785249,151.11,151.06,16.15559298]
[1750157685564,7.44057139,151.1,151.07,3.45570685]
[1750157685756,7.44057139,151.09,151.07,3.45570685]
[1750157685949,7.44057139,151.08,151.07,3.45570685]
[1750157688179,4.96060506,151.08,151.07,3.45570685]
[1750157688492,4.96060506,151.08,151.07,10.07515478]
[1750157689677,6.61743985,151.12,151.07,10.07515478]
[1750157689853,26.0,151.1,151.09,3.45570685]
[1750157690179,30.96168673,151.1,151.09,3.45570685]
[1750157690381,30.96168673,151.1,151.08,3.45570685]
[1750157690685,4.96168673,151.09,151.08,3.45570685]
[1750157691757,4.96168673,151.09,151.07,6.61944793]
[1750157692055,26.0,151.1,151.08,3.45570685]
[1750157692302,4.96039642,151.09,151.08,3.45570685]
[1750157695463,4.96039642,151.09,151.06,12.69974634]
[1750157695464,4.96039642,151.09,151.07,3.45570685]
[1750157696059,6.61771026,151.11,151.07,3.45570685]
[1750157696259,4.95908036,151.1,151.07,3.45570685]
[1750157696457,4.95908036,151.09,151.07,3.45570685]
[1750157696676,6.61771026,151.11,151.07,3.45570685]
[1750157696875,4.95880419,151.1,151.07,3.45570685]
[1750157697093,4.95880419,151.09,151.08,3.45570685]
[1750157700466,6.61771026,151.11,151.08,9.53570685]
[1750157700791,4.95756503,151.1,151.08,9.53570685]
[1750157701080,11.79422276,151.14,151.09,3.45570685]
[1750157701286,11.79422276,151.14,151.13,3.45570685]
[1750157701499,16.75064842,151.14,151.13,3.45570685]
[1750157701858,11.56693486,151.17,151.13,3.45570685]
[1750157702086,4.95185757,151.16,151.14,3.45570685]
[1750157702255,6.61507729,151.17,151.15,6.08]
[1750157702460,4.95166246,151.16,151.15,6.08]
[1750157702858,10.07078414,151.17,151.15,6.08]
[1750157703473,4.94826324,151.16,151.15,6.08]
[1750157703677,10.07078414,151.17,151.15,6.08]
[1750157705082,16.95324905,151.17,151.15,6.08]
[1750157705288,12.00985118,151.17,151.15,6.08]
[1750157705773,16.95324905,151.17,151.15,6.08]
[1750157705966,12.00985118,151.17,151.15,6.08]
[1750157706171,5.39477389,151.16,151.15,6.08]
[1750157706564,12.01028063,151.16,151.15,6.08]
[1750157709487,12.00984301,151.17,151.15,6.08]
[1750157709996,16.95324088,151.17,151.15,6.08]
[1750157710192,12.00984301,151.17,151.15,6.08]
[1750157710869,5.39477389,151.16,151.15,6.08]
[1750157711698,12.00984301,151.17,151.15,6.08]
[1750157712194,5.39477389,151.16,151.15,6.08]
[1750157712487,12.01028063,151.16,151.15,6.08]
[1750157713000,6.61550674,151.16,151.15,6.08]
[1750157713698,12.01028063,151.16,151.15,6.08]
[1750157714200,6.61550674,151.16,151.15,6.08]
[1750157717200,10.32997621,151.19,151.15,11.47477389]
[1750157717405,31.39477389,151.19,151.15,11.47477389]
[1750157718490,6.61473663,151.18,151.15,11.47477389]
[1750157721379,6.61473663,151.18,151.15,6.08]
[1750157721580,6.61473663,151.18,151.15,11.47477389]
[1750157721781,12.00951052,151.18,151.15,6.08]
[1750157723907,6.61473663,151.18,151.15,11.47477389]
[1750157724990,6.61473663,151.18,151.15,9.53193694]
[1750157725917,10.06667357,151.18,151.15,6.08]
[1750157728999,3.45193694,151.16,151.15,6.08]
[1750157729308,29.45193694,151.16,151.15,6.08]
[1750157730484,29.45193694,151.16,151.12,6.06]
[1750157730685,29.45193694,151.16,151.09,8.16657166]
[1750157730686,3.45193694,151.14,151.1,6.06]
[1750157730880,26.0,151.14,151.12,3.45193694]
[1750157731084,6.61600379,151.15,151.12,3.45193694]
[1750157731315,6.61569682,151.16,151.13,3.45193694]
[1750157733325,4.9364062,151.17,151.15,3.45193694]
[1750157733624,6.61494241,151.18,151.16,3.45193694]
[1750157734328,6.61494241,151.18,151.15,3.45193694]
[1750157735002,6.61494241,151.18,151.16,3.45193694]
[1750157735424,11.55134861,151.18,151.16,3.45193694]
[1750157735722,6.61494241,151.18,151.16,3.45193694]
[1750157736083,6.61494241,151.18,151.12,13.80774776]
[1750157736288,11.55134861,151.18,151.16,3.45193694]
[1750157736488,6.61494241,151.18,151.16,3.45193694]
[1750157736688,11.55134861,151.18,151.15,3.45193694]
[1750157736886,11.55134861,151.18,151.15,5.3934586]
[1750157737118,16.94480721,151.18,151.14,5.3934586]
[1750157737428,12.00840101,151.18,151.14,5.3934586]
[1750157737726,11.55134861,151.18,151.14,5.3934586]
[1750157737926,12.00840101,151.18,151.14,5.3934586]
[1750157738098,16.94480721,151.18,151.13,5.3934586]
[1750157738304,11.55170688,151.17,151.13,5.3934586]
[1750157738505,4.9364062,151.17,151.15,5.3934586]
[1750157738696,33.8066,151.2,151.1,7.90272314]
[1750157738697,12.00809016,151.18,151.14,5.3934586]
[1750157739395,4.94499606,151.17,151.15,5.3934586]
[1750157740212,6.61515581,151.17,151.15,5.3934586]
[1750157740617,11.56020905,151.17,151.15,5.3934586]
[1750157740928,6.61515581,151.17,151.15,5.3934586]
[1750157741218,11.56020905,151.17,151.15,5.3934586]
[1750157741420,6.61515581,151.17,151.15,5.3934586]
[1750157741921,6.61515581,151.17,151.14,11.4334586]
[1750157742503,4.94907083,151.16,151.14,6.04]
[1750157742812,12.00861441,151.17,151.14,6.04]
[1750157743016,4.94929882,151.16,151.14,6.04]
[1750157743216,6.61515581,151.17,151.14,6.04]
[1750157743419,4.94929798,151.16,151.14,6.04]
[1750157743598,12.00861441,151.17,151.14,6.04]
[1750157743797,11.56729332,151.16,151.14,6.04]
[1750157743995,6.6155403,151.16,151.13,5.3934586]
[1750157744223,25.26384292,151.19,151.14,5.3934586]
[1750157744425,10.34516047,151.18,151.14,5.3934586]
[1750157744598,4.95170187,151.17,151.14,5.3934586]
[1750157744798,4.95170187,151.16,151.14,5.3934586]
[1750157744999,5.3934586,151.17,151.13,5.3934586]
[1750157745198,4.95498935,151.16,151.13,5.3934586]
[1750157745402,4.95498935,151.15,151.14,5.3934586]
[1750157745613,6.61540088,151.17,151.14,5.3934586]
[1750157745810,4.95500495,151.16,151.14,5.3934586]
[1750157745996,6.61540088,151.17,151.14,5.3934586]
[1750157746200,4.95500495,151.16,151.14,5.3934586]
[1750157746425,6.61540088,151.17,151.14,5.3934586]
[1750157746599,4.95500495,151.16,151.14,5.3934586]
[1750157746797,6.61540088,151.17,151.14,5.3934586]
[1750157747120,11.57062813,151.16,151.14,5.3934586]
[1750157747328,6.61556147,151.16,151.14,5.3934586]
[1750157747501,6.61556147,151.16,151.11,6.61755058]
[1750157747700,6.61556147,151.16,151.14,5.3934586]
[1750157747915,6.61556147,151.16,151.11,6.61755058]
[1750157748216,4.95517912,151.15,151.13,5.3934586]
[1750157748422,6.61556147,151.16,151.13,5.3934586]
[1750157748593,4.95525803,151.15,151.13,5.3934586]
[1750157748797,6.61556147,151.16,151.13,11.4334586]
[1750157748996,4.95517982,151.15,151.14,5.3934586]
[1750157749191,6.61438376,151.19,151.14,5.3934586]
[1750157749502,4.95506005,151.18,151.15,5.3934586]
[1750157749809,10.34851865,151.17,151.13,11.4334586]
[1750157750018,4.95506005,151.16,151.13,5.3934586]
[1750157750319,4.95506005,151.15,151.13,11.4334586]
[1750157750500,6.61526167,151.17,151.14,5.3934586]
[1750157750702,4.95508544,151.16,151.15,5.3934586]
[1750157751115,12.97695194,151.19,151.15,5.3934586]
[1750157751421,12.97695194,151.19,151.13,12.65680096]
[1750157751422,4.95476178,151.18,151.17,5.3934586]
[1750157752504,4.95476178,151.18,151.16,5.3934586]
[1750157752699,6.61420474,151.19,151.16,5.3934586]
[1750157753026,4.95399697,151.18,151.16,5.3934586]
[1750157753223,6.61420474,151.19,151.16,5.3934586]
[1750157753429,4.95399697,151.18,151.16,5.3934586]
[1750157753614,6.61420474,151.19,151.16,5.3934586]
[1750157753802,4.95378751,151.18,151.16,5.3934586]
[1750157754000,4.95378751,151.17,151.16,5.3934586]
[1750157754199,6.61420474,151.19,151.16,5.3934586]
[1750157754515,4.95378751,151.18,151.16,5.3934586]
[1750157754716,6.61420474,151.19,151.14,6.61614095]
[1750157754918,4.95364374,151.18,151.16,5.3934586]
[1750157755099,6.61420474,151.19,151.16,5.3934586]
[1750157755296,4.9536429,151.18,151.16,5.3934586]
[1750157755499,6.61420474,151.19,151.16,5.3934586]
[1750157755696,4.95354037,151.18,151.17,5.3934586]
[1750157756424,6.61420474,151.19,151.17,5.3934586]
[1750157756625,6.61375661,151.2,151.17,5.3934586]
[1750157756927,4.95349408,151.19,151.17,5.3934586]
[1750157757313,6.61375661,151.2,151.17,5.3934586]
[1750157757828,4.95366994,151.19,151.17,5.3934586]
[1750157758122,4.95366994,151.18,151.17,5.3934586]
[1750157758510,4.95384474,151.18,151.15,6.61590803]
[1750157758727,4.95384474,151.18,151.17,5.3934586]
[1750157758912,6.61375661,151.2,151.17,5.3934586]
[1750157759308,4.95391459,151.19,151.17,5.3934586]
[1750157759501,4.95391459,151.18,151.17,5.3934586]
[1750157760514,4.95391459,151.18,151.17,30.65817658]
[1750157760730,8.2180359,151.25,151.18,0.28432314]
[1750157760731,6.61185058,151.25,151.18,0.28432314]
[1750157760919,4.95259945,151.24,151.18,0.28432314]
[1750157761114,4.95259945,151.23,151.21,3.4484875]
[1750157761324,4.95259945,151.22,151.21,9.4884875]
[1750157761646,4.95259945,151.22,151.21,6.04]
[1750157762003,4.95259945,151.22,151.21,9.4884875]
[1750157762409,4.95259945,151.25,151.21,9.4884875]
[1750157762611,4.95259945,151.24,151.22,3.4484875]
[1750157762813,6.61129402,151.26,151.22,5.38822257]
[1750157763025,4.94624749,151.25,151.22,5.38822257]
[1750157763230,4.94624749,151.24,151.22,5.38822257]
[1750157763412,4.94610406,151.25,151.22,5.38822257]
[1750157763725,11.55739808,151.26,151.24,5.38822257]
[1750157763908,4.94610406,151.25,151.23,5.38822257]
[1750157764608,4.94610406,151.25,151.22,5.38822257]
[1750157765610,11.55811146,151.24,151.21,6.04]
[1750157765816,6.6120074,151.24,151.21,11.42822257]
[1750157766304,6.6120074,151.24,151.22,5.38822257]
[1750157766508,6.6120074,151.24,151.21,6.04]
[1750157766509,6.6120074,151.24,151.23,5.38822257]
[1750157766725,6.6120074,151.24,151.21,6.04]
[1750157766926,6.6120074,151.24,151.21,11.40822257]
[1750157768130,12.00022997,151.24,151.21,6.02]
[1750157768330,5.38822257,151.23,151.21,6.02]
[1750157768510,5.38822257,151.22,151.19,6.02]
[1750157769528,10.33432663,151.23,151.19,11.40822257]
[1750157769934,12.00110446,151.22,151.19,6.02]
[1750157770636,5.38822257,151.21,151.19,6.02]
[1750157770839,5.38822257,151.2,151.14,0.14216157]
[1750157771037,5.38822257,151.2,151.15,11.40822257]
[1750157771339,5.38822257,151.2,151.16,5.38822257]
[1750157771928,6.61419406,151.19,151.16,5.38822257]
[1750157775736,6.61419406,151.19,151.15,6.02]
[1750157776042,6.61419406,151.19,151.16,5.38822257]
[1750157776429,6.61419406,151.19,151.17,5.38822257]
[1750157777218,6.61375661,151.2,151.17,5.38822257]
[1750157778028,6.61375661,151.2,151.18,5.38822257]
[1750157778344,6.61375661,151.2,151.17,5.38822257]
[1750157779537,6.61331922,151.21,151.17,5.38822257]
[1750157780140,6.61331922,151.21,151.18,5.38822257]
[1750157780726,6.61331922,151.21,151.15,12.63592737]
[1750157780941,6.61331922,151.21,151.18,5.38822257]
[1750157785120,6.6130782,151.22,151.19,5.38822257]
[1750157786520,4.94610406,151.23,151.2,5.38822257]
[1750157786521,6.61256832,151.23,151.2,5.38822257]
[1750157787032,6.61256832,151.23,151.21,5.38822257]
[1750157789546,6.61256832,151.23,151.18,6.61446936]
[1750157789751,6.61256832,151.23,151.2,5.38822257]
[1750157791654,6.61256832,151.23,151.19,5.38822257]
[1750157791853,12.00079089,151.23,151.19,5.38822257]
[1750157792049,6.61256832,151.23,151.19,5.38822257]
[1750157792431,6.61256832,151.23,151.2,5.38822257]
[1750157792746,4.93915804,151.23,151.21,5.38822257]
[1750157793052,37.55133596,151.24,151.21,5.38822257]
[1750157793456,32.61217792,151.24,151.21,5.38822257]
[1750157793638,37.55133596,151.24,151.21,5.38822257]
[1750157794751,42.93955853,151.24,151.2,5.38822257]
[1750157794929,4.93915804,151.23,151.2,5.38822257]
[1750157795552,11.55171422,151.23,151.2,5.38822257]
[1750157797381,11.55171422,151.23,151.18,6.75655129]
[1750157797382,6.61255618,151.23,151.18,6.75655129]
[1750157797564,6.61255618,151.23,151.2,5.38822257]
[1750157797955,11.55556756,151.23,151.2,5.38822257]
[1750157798752,28.47621638,151.27,151.22,5.38822257]
[1750157799056,4.9427039,151.26,151.23,5.38822257]
[1750157799247,4.9427039,151.25,151.23,5.38822257]
[1750157799449,4.9427039,151.26,151.23,5.38822257]
[1750157799946,4.9427039,151.25,151.23,5.38822257]
[1750157800260,11.55384899,151.26,151.23,5.38822257]
[1750157800764,6.61114509,151.26,151.23,5.38822257]
[1750157801156,11.55384899,151.26,151.23,5.38822257]
[1750157801667,6.61114509,151.26,151.23,5.38822257]
[1750157801865,11.55384899,151.26,151.23,5.38822257]
[1750157802552,6.61114509,151.26,151.23,5.38822257]
[1750157803955,25.59664333,151.27,151.24,5.38822257]
[1750157803956,25.12184572,151.27,151.24,5.38822257]
[1750157804167,20.17914182,151.27,151.24,5.38822257]
[1750157804466,18.51102466,151.27,151.25,5.38822257]
[1750157804664,13.56832076,151.27,151.26,5.38822257]
[1750157805338,4.9427039,151.28,151.26,5.38822257]
[1750157805542,4.9427039,151.29,151.26,5.38822257]
[1750157806671,16.94045046,151.3,151.26,5.38822257]
[1750157806872,11.55222789,151.3,151.26,5.38822257]
[1750157807058,16.94045046,151.3,151.26,5.38822257]
[1750157807471,5.38822257,151.29,151.23,6.61244462]
[1750157807682,5.38822257,151.29,151.25,5.38822257]
[1750157808451,16.94045046,151.3,151.26,5.38822257]
[1750157809144,16.94045046,151.3,151.25,5.38822257]
[1750157809574,16.94045046,151.3,151.26,5.38822257]
[1750157809946,11.55222789,151.3,151.26,5.38822257]
[1750157810144,6.60952399,151.3,151.24,6.61182266]
[1750157810461,6.60952399,151.3,151.27,5.38822257]
[1750157810657,11.99774656,151.3,151.26,5.38822257]
[1750157810863,16.94045046,151.3,151.26,5.38822257]
[1750157811549,11.55222789,151.3,151.26,5.38822257]
[1750157811754,16.94045046,151.3,151.26,5.38822257]
[1750157812158,43.84021865,151.33,151.25,6.61137598]
[1750157812159,6.60807506,151.33,151.25,6.61137598]
[1750157812473,6.60807506,151.33,151.25,5.38822257]
[1750157812474,5.38822257,151.29,151.25,5.38822257]
[1750157812679,5.38822257,151.29,151.23,6.61244462]
[1750157812849,5.38822257,151.29,151.25,5.38822257]
[1750157813050,4.929432,151.32,151.23,6.61244462]
[1750157813275,5.38822257,151.3,151.26,5.38822257]
[1750157813578,6.60982219,151.29,151.26,5.38822257]
[1750157814360,6.60982219,151.29,151.24,6.61184636]
[1750157814561,6.60982219,151.29,151.26,5.38822257]
[1750157816057,6.60982219,151.29,151.24,6.61184636]
[1750157816460,6.60982219,151.29,151.26,5.38822257]
[1750157816880,6.60982219,151.29,151.24,6.61184636]
[1750157817180,6.60982219,151.29,151.26,5.38822257]
[1750157817359,6.60982219,151.29,151.24,6.61184636]
[1750157817565,6.60982219,151.29,151.26,5.38822257]
[1750157818382,11.99804476,151.29,151.23,0.28432314]
[1750157818686,11.99804476,151.29,151.25,5.38822257]
[1750157819055,11.99804476,151.29,151.24,5.38822257]
[1750157819770,11.99804476,151.29,151.24,12.00017181]
[1750157819973,11.99804476,151.29,151.25,5.38822257]
[1750157821280,11.99804476,151.29,151.24,5.38822257]
[1750157821670,5.38822257,151.28,151.24,5.38822257]
[1750157821883,11.99804476,151.29,151.24,5.38822257]
[1750157823370,11.99804476,151.29,151.24,12.00018104]
[1750157823758,11.99804476,151.29,151.25,5.38822257]
[1750157824893,11.99804476,151.29,151.23,6.61232933]
[1750157825058,11.99804476,151.29,151.24,5.38822257]
[1750157826164,6.60982219,151.29,151.24,5.38822257]
[1750157826466,11.99804476,151.29,151.24,5.38822257]
[1750157826790,5.38822257,151.28,151.24,5.38822257]
[1750157827172,6.60982219,151.29,151.24,5.38822257]
[1750157827491,11.99804476,151.29,151.23,6.61232933]
[1750157827688,11.99804476,151.29,151.24,5.38822257]
[1750157828584,16.92628266,151.29,151.24,5.38822257]
[1750157829090,11.53806009,151.29,151.24,5.38822257]
[1750157829281,5.38822257,151.28,151.24,5.38822257]
[1750157829465,11.53806009,151.29,151.24,5.38822257]
[1750157829788,5.38822257,151.28,151.24,5.38822257]
[1750157830888,11.53806009,151.29,151.24,3.44752904]
[1750157831267,3.44752904,151.28,151.24,3.44752904]
[1750157831694,8.37576694,151.28,151.24,3.44752904]
[1750157833298,8.37576694,151.28,151.23,6.61232933]
[1750157833299,6.61034306,151.28,151.25,3.44752904]
[1750157833886,6.61034306,151.28,151.25,5.96]
[1750157834073,10.0578721,151.28,151.25,5.96]
[1750157834276,14.98611,151.28,151.25,5.96]
[1750157834478,10.0578721,151.28,151.25,5.96]
[1750157834676,14.98611,151.28,151.25,5.96]
[1750157834893,10.0578721,151.28,151.25,5.96]
[1750157835085,14.98611,151.28,151.25,5.96]
[1750157835384,10.0578721,151.28,151.25,5.96]
[1750157835584,14.98611,151.28,151.25,5.96]
[1750157835899,10.0578721,151.28,151.25,5.96]
[1750157836085,14.98611,151.28,151.25,5.96]
[1750157836273,10.0578721,151.28,151.25,5.96]
[1750157836474,4.9282379,151.29,151.26,3.44752904]
[1750157836784,3.44752904,151.3,151.26,3.44752904]
[1750157836993,3.44752904,151.3,151.25,16.01905724]
[1750157836994,4.9282379,151.29,151.25,16.01905724]
[1750157838579,4.9282379,151.29,151.26,3.44752904]
[1750157839905,10.05716499,151.3,151.26,3.44752904]
[1750157840111,4.94338792,151.29,151.26,3.44752904]
[1750157840312,10.05716499,151.3,151.26,3.44752904]
[1750157840508,4.94338792,151.29,151.26,3.44752904]
[1750157840683,6.60963595,151.3,151.26,3.44752904]
[1750157840888,4.94492935,151.29,151.26,3.44752904]
[1750157841086,4.94474584,151.28,151.25,16.01905724]
[1750157841311,4.94474584,151.29,151.25,16.01905724]
[1750157841495,4.94474584,151.28,151.25,16.01905724]
[1750157841701,4.94474584,151.29,151.25,16.01905724]
[1750157841901,4.94474584,151.28,151.27,3.44752904]
[1750157842131,4.94627037,151.3,151.27,3.44752904]
[1750157842442,4.94627037,151.29,151.27,3.44752904]
[1750157842592,4.94627037,151.3,151.26,3.44752904]
[1750157842794,4.94627037,151.29,151.26,3.44752904]
[1750157843003,10.0565942,151.31,151.26,3.44752904]
[1750157843213,4.94739802,151.3,151.26,10.05857939]
[1750157843410,4.94739802,151.29,151.27,3.44752904]
[1750157843622,10.0565942,151.31,151.27,3.44752904]
[1750157843825,4.94933339,151.3,151.27,3.44752904]
[1750157843991,4.94933339,151.29,151.26,6.61105035]
[1750157844330,15.89162642,151.33,151.28,3.44752904]
[1750157844331,19.05252276,151.33,151.28,3.44752904]
[1750157844620,19.05252276,151.33,151.29,3.44752904]
[1750157844621,4.94906696,151.32,151.29,3.44752904]
[1750157844828,12.89222538,151.33,151.29,3.44752904]
[1750157844829,4.94906696,151.31,151.29,3.44752904]
[1750157845121,16.33975442,151.33,151.25,6.24432314]
[1750157845122,3.44752904,151.32,151.28,3.44752904]
[1750157845305,4.94850287,151.31,151.28,3.44752904]
[1750157845615,3.44752904,151.32,151.28,3.44752904]
[1750157845814,4.94727095,151.31,151.28,3.44752904]
[1750157846022,3.44752904,151.32,151.28,3.44752904]
[1750157846186,4.94727918,151.31,151.28,3.44752904]
[1750157846387,12.89222538,151.33,151.28,3.44752904]
[1750157846388,16.33975442,151.33,151.28,10.05771821]
[1750157846608,4.9472318,151.32,151.28,10.05771821]
[1750157846811,4.9472318,151.31,151.28,6.61018917]
[1750157847014,3.44752904,151.32,151.28,10.05771821]
[1750157847224,4.94629066,151.31,151.28,10.05771821]
[1750157847403,4.94629066,151.31,151.29,3.44752904]
[1750157847604,4.94629066,151.32,151.29,3.44752904]
[1750157847819,16.33954409,151.33,151.29,3.44752904]
[1750157847995,4.94525836,151.32,151.29,3.44752904]
[1750157848196,16.33954409,151.33,151.29,3.44752904]
[1750157848398,4.94534825,151.32,151.29,3.44752904]
[1750157848716,4.94534825,151.31,151.28,6.61003827]
[1750157848919,4.94534825,151.32,151.29,3.44752904]
[1750157849099,16.33954409,151.33,151.29,3.44752904]
[1750157849415,4.94496676,151.32,151.29,3.44752904]
[1750157849718,13.04718483,151.34,151.3,3.44752904]
[1750157849937,4.94357277,151.33,151.3,3.44752904]
[1750157850127,13.04718483,151.34,151.3,3.44752904]
[1750157850414,4.94357272,151.33,151.3,3.44752904]
[1750157850597,4.94357272,151.33,151.28,6.61003827]
[1750157850797,4.94357272,151.33,151.29,3.44752904]
[1750157851200,4.94357272,151.33,151.3,3.44752904]
[1750157851592,4.94357272,151.33,151.28,6.61003827]
[1750157851593,1.3494214,151.34,151.32,3.44752904]
[1750157851923,1.3494214,151.34,151.32,9.40752904]
[1750157852216,4.79695044,151.34,151.32,5.96]
[1750157852422,4.79695044,151.34,151.28,6.89436141]
[1750157852423,3.44752904,151.33,151.3,5.96]
[1750157852911,10.05567232,151.33,151.3,5.96]
[1750157853217,6.60814328,151.33,151.3,5.96]
[1750157853603,10.05567232,151.33,151.3,5.96]
[1750157853804,6.60814328,151.33,151.3,9.40752904]
[1750157854908,6.60814328,151.33,151.3,11.34275081]
[1750157855433,6.60814328,151.33,151.3,5.96]
[1750157855926,11.99089409,151.33,151.3,5.96]
[1750157856228,13.3399679,151.34,151.3,11.34275081]
[1750157858006,13.3399679,151.34,151.3,5.96]
[1750157858424,13.3399679,151.34,151.3,11.34275081]
[1750157859225,7.95721709,151.34,151.3,11.34275081]
[1750157859521,13.3399679,151.34,151.3,11.34275081]
[1750157861433,13.3399679,151.34,151.3,5.96]
[1750157862823,13.3399679,151.34,151.3,11.34275081]
[1750157863323,7.95721709,151.34,151.31,5.38275081]
[1750157864536,13.3399679,151.34,151.3,5.96]
[1750157866812,13.3399679,151.34,151.3,11.34275081]
[1750157867827,18.28354062,151.34,151.3,11.34275081]
[1750157868529,7.95721709,151.34,151.3,11.34275081]
[1750157868733,13.3399679,151.34,151.3,11.34275081]
[1750157869031,18.28354062,151.34,151.3,11.34275081]
[1750157869328,13.3399679,151.34,151.3,11.34275081]
[1750157869934,7.95721709,151.34,151.3,11.34275081]
[1750157870108,13.3399679,151.34,151.3,11.34275081]
[1750157870312,13.3399679,151.34,151.3,5.96]
[1750157870512,18.28354062,151.34,151.3,5.96]